fUSD/lending_fUSD_20250104
["ID","MTS","AMOUNT","RATE_DAILY","PERIOD"]
[347632590,1735987834024,-513.23380809,0.00010958,2]
[347632591,1735987834034,-33028.20142205,0.00010971,2]
[347632592,1735987834061,-5776.89039022,0.00010971,2]
[347632593,1735987834079,-260.95563385,0.00010971,2]
[347632596,1735987838140,-533.5,9.979e-05,2]
[347632597,1735987838152,-109.52,9.979e-05,2]
[347632598,1735987838162,-500.0,9.979e-05,2]
[347632599,1735987838171,-643.02,0.00010253,2]
[347632600,1735987838180,-263.65512172,0.00010527,2]
[347632601,1735987838191,-379.36487828,0.00010527,2]
[347632602,1735987838200,-643.02,0.00010801,2]
[347632603,1735987838209,-51714.20880196,0.00010971,2]
[347632604,1735987838219,-1024.77893856,0.00010971,2]
[347632605,1735987838228,-1024.77893856,0.00010975,2]
[347632606,1735987838237,-90780.25624808,0.00010978,2]
[347632607,1735987838246,-1024.77893856,0.00010979,2]
[347632608,1735987838255,-1024.77893856,0.00010985,2]
[347632609,1735987838264,-46156.03431744,0.00010985,2]
[347632610,1735987838275,-44624.22193064,0.00010985,2]
[347632611,1735987838283,-500.0,0.00010992,2]
[347632612,1735987838292,-200.0,0.00010994,2]
[347632613,1735987838301,-40232.40922089,0.00010995,2]
[347632614,1735987838312,-406.4852476,0.00010995,2]
[347632615,1735987838323,-385.87238127,0.00010995,2]
[347632616,1735987838356,-4042.16836142,0.00010995,2]
[347632617,1735987838367,-646.45658435,0.00010995,2]
[347632618,1735987838378,-45066.86445255,0.00010995,2]
[347632619,1735987838387,-1024.77893856,0.00010995,2]
[347632620,1735987838396,-19872.64630276,0.00010995,2]
[347632627,1735987840185,-3921.6432,0.00010995,2]
[347632628,1735987840196,-762.84,0.00010995,2]
[347632629,1735987840207,-859.757009,0.00010995,2]
[347632630,1735987840218,-622.68,0.00010995,2]
[347632631,1735987840229,-1021.095,0.00010995,2]
[347632632,1735987840241,-483.21795857,0.00010995,2]
[347632633,1735987840252,-452.45572213,0.00010995,2]
[347632634,1735987840330,-302.71657206,0.00010995,2]
[347632635,1735987840341,-533.699318,0.00010995,2]
[347632636,1735987840353,-418.59099643,0.00010995,2]
[347632637,1735987840364,-297.82867182,0.00010995,2]
[347632638,1735987840375,-3719.08259173,0.00010995,2]
[347632639,1735987840531,-13896.61946613,0.00010995,2]
[347632640,1735987840544,-1693.55000005,0.00010995,2]
[347632641,1735987840555,-1197.36579206,0.00010995,2]
[347632642,1735987840566,-2692.47478749,0.00010995,2]
[347632652,1735987843376,-1103.0,0.00010587,2]
[347632653,1735987843387,-11814.83962908,0.00010995,2]
[347632654,1735987843483,-276.29565446,0.00010995,2]
[347632656,1735987843661,-25940.85757631,0.00010995,2]
[347632658,1735987843670,-164.02401998,0.00010996,2]
[347632660,1735987843681,-35.97598002,0.00010996,2]
[347632662,1735987843691,-366.62401998,0.00010998,2]
[347632664,1735987843702,-267.180579,0.00010998,2]
[347632666,1735987843714,-390.97433958,0.00010998,2]
[347632668,1735987843723,-2806.57079143,0.00011,2]
[347632669,1735987843735,-7764.0017081,0.00011,2]
[347632670,1735987843746,-5358.95820267,0.00011,2]
[347632671,1735987843758,-22544.83802951,0.00011,2]
[347632672,1735987843770,-709.114925,0.00011,2]
[347632682,1735987846180,-8896.85184912,0.00011,2]
[347632683,1735987846191,-1176.26119037,0.00011,2]
[347632684,1735987846202,-7119.47499207,0.00011,2]
[347632685,1735987846213,-4011.775974,0.00011,2]
[347632686,1735987846223,-2611.4125,0.00011,2]
[347632687,1735987846234,-1955.8075663,0.00011,2]
[347632688,1735987846244,-2074.8974902,0.00011,2]
[347632689,1735987846255,-2936.358994,0.00011,2]
[347632690,1735987846266,-5342.2933895,0.00011,2]
[347632691,1735987846277,-3373.4755,0.00011,2]
[347632692,1735987846288,-324.4,0.00011,2]
[347632693,1735987846329,-474.02013611,0.00011,2]
[347632694,1735987846341,-11070.648445,0.00011,2]
[347632695,1735987846353,-229.0945647,0.00011,2]
[347632696,1735987846362,-1235.57,0.00011075,2]
[347632697,1735987846373,-501.45,0.00011075,2]
[347632698,1735987846382,-500.0,0.00011075,2]
[347632699,1735987846393,-500.0,0.00011075,2]
[347632700,1735987846403,-1206.95,0.00011075,2]
[347632701,1735987846412,-500.0,0.00011075,2]
[347632702,1735987846421,-762.08,0.00011075,2]
[347632703,1735987846432,-500.0,0.00011075,2]
[347632704,1735987846442,-500.0,0.00011075,2]
[347632705,1735987846451,-500.0,0.00011075,2]
[347632706,1735987846461,-660.0,0.00011075,2]
[347632707,1735987846470,-500.0,0.00011075,2]
[347632708,1735987846479,-500.0,0.00011075,2]
[347632709,1735987846488,-500.0,0.00011075,2]
[347632711,1735987846498,-500.0,0.00011075,2]
[347632712,1735987846508,-643.02,0.00011075,2]
[347632713,1735987846518,-860.5109,0.00011249,2]
[347632714,1735987846527,-500.0,0.00011266,2]
[347632715,1735987846536,-168.29,0.000113,2]
[347632716,1735987846546,-1235.57,0.00011349,2]
[347632717,1735987846555,-501.45,0.00011349,2]
[347632718,1735987846564,-500.0,0.00011349,2]
[347632719,1735987846574,-500.0,0.00011349,2]
[347632720,1735987846583,-1206.95,0.00011349,2]
[347632721,1735987846593,-500.0,0.00011349,2]
[347632723,1735987846602,-762.08,0.00011349,2]
[347632724,1735987846611,-500.0,0.00011349,2]
[347632725,1735987846621,-500.0,0.00011349,2]
[347632726,1735987846630,-500.0,0.00011349,2]
[347632727,1735987846639,-660.0,0.00011349,2]
[347632728,1735987846649,-500.0,0.00011349,2]
[347632729,1735987846661,-500.0,0.00011349,2]
[347632730,1735987846670,-500.0,0.00011349,2]
[347632731,1735987846679,-500.0,0.00011349,2]
[347632732,1735987846688,-643.02,0.00011349,2]
[347632733,1735987846697,-500.0,0.0001135,2]
[347632734,1735987846708,-500.0,0.0001154,2]
[347632735,1735987846717,-1235.57,0.00011623,2]
[347632736,1735987846727,-501.45,0.00011623,2]
[347632737,1735987846736,-285.97194554,0.00011623,2]
[347632738,1735987846746,-500.0,0.00011623,2]
[347632739,1735987846755,-1206.95,0.00011623,2]
[347632740,1735987846764,-500.0,0.00011623,2]
[347632741,1735987846773,-762.08,0.00011623,2]
[347632742,1735987846782,-500.0,0.00011623,2]
[347632743,1735987846791,-500.0,0.00011623,2]
[347632744,1735987846800,-500.0,0.00011623,2]
[347632745,1735987846810,-660.0,0.00011623,2]
[347632746,1735987846819,-500.0,0.00011623,2]
[347632747,1735987846828,-500.0,0.00011623,2]
[347632748,1735987846837,-500.0,0.00011623,2]
[347632749,1735987846846,-500.0,0.00011623,2]
[347632750,1735987846856,-643.02,0.00011623,2]
[347632751,1735987846865,-800.0,0.00011624,2]
[347632752,1735987846874,-1229.403,0.00011639,2]
[347632753,1735987846883,-630.331,0.0001168,2]
[347632754,1735987846893,-1000.0,0.00011739,2]
[347632755,1735987846902,-500.0,0.00011813,2]
[347632756,1735987846912,-180.498303,0.00011818,2]
[347632757,1735987846921,-180.498301,0.00011818,2]
[347632758,1735987846931,-180.498302,0.00011818,2]
[347632759,1735987846941,-500.0,0.00011896,2]
[347632760,1735987846950,-500.0,0.00011896,2]
[347632761,1735987846960,-500.0,0.00011896,2]
[347632762,1735987846969,-500.0,0.00011896,2]
[347632763,1735987846979,-500.0,0.00011896,2]
[347632764,1735987846988,-528.19,0.00011896,2]
[347632765,1735987846998,-1235.57,0.00011897,2]
[347632766,1735987847007,-501.45,0.00011897,2]
[347632767,1735987847016,-500.0,0.00011897,2]
[347632768,1735987847026,-500.0,0.00011897,2]
[347632769,1735987847035,-1206.95,0.00011897,2]
[347632770,1735987847044,-762.08,0.00011897,2]
[347632771,1735987847054,-500.0,0.00011897,2]
[347632772,1735987847063,-500.0,0.00011897,2]
[347632773,1735987847072,-500.0,0.00011897,2]
[347632774,1735987847081,-660.0,0.00011897,2]
[347632775,1735987847090,-500.0,0.00011897,2]
[347632776,1735987847103,-500.0,0.00011897,2]
[347632777,1735987847112,-500.0,0.00011897,2]
[347632778,1735987847121,-154.47265891,0.00011897,2]
[347632779,1735987847158,-345.52734109,0.00011897,2]
[347632780,1735987847167,-643.02,0.00011897,2]
[347632781,1735987847176,-482.98459138,0.00011982,2]
[347632782,1735987847188,-530.09970862,0.00011982,2]
[347632783,1735987847197,-500.0,0.00011998,2]
[347632784,1735987847207,-529.19,0.00011998,2]
[347632785,1735987847216,-500.0,0.00011998,2]
[347632786,1735987847225,-125.25041355,0.00011998,2]
[347632787,1735987847241,-374.74958645,0.00011998,2]
[347632788,1735987847251,-500.0,0.00011998,2]
[347632789,1735987847260,-500.0,0.00011998,2]
[347632790,1735987847269,-500.0,0.00011998,2]
[347632791,1735987847279,-500.0,0.00011998,2]
[347632792,1735987847288,-500.0,0.00011998,2]
[347632793,1735987847297,-500.0,0.00011998,2]
[347632794,1735987847306,-417.78299047,0.00011998,2]
[347632795,1735987847317,-82.21700953,0.00011998,2]
[347632796,1735987847326,-653.04,0.00011998,2]
[347632797,1735987847335,-500.0,0.00011998,2]
[347632798,1735987847344,-201.83126952,0.00011999,2]
[347632799,1735987847353,-386.41415547,0.00011999,2]
[347632800,1735987847364,-113.58584453,0.00011999,2]
[347632801,1735987847375,-500.0,0.00011999,2]
[347632802,1735987847385,-500.0,0.00011999,2]
[347632803,1735987847394,-25.59134417,0.00011999,2]
[347632804,1735987974935,9000.0,7.1e-05,2]
[347632806,1735988380026,3000.0,0.00013,30]
[347632807,1735989032374,-601.43,8.681e-05,2]
[347632808,1735989032384,-24884.4320794,9.979e-05,2]
[347632809,1735989032394,-500.0,9.979e-05,2]
[347632810,1735989032403,-500.0,9.979e-05,2]
[347632811,1735989032412,-500.0,9.979e-05,2]
[347632812,1735989032422,-2060.77583744,9.979e-05,2]
[347632813,1735989032433,-260.0,0.00010137,2]
[347632814,1735989032442,-500.0,0.00010253,2]
[347632815,1735989032451,-500.0,0.00010253,2]
[347632816,1735989032460,-500.0,0.00010253,2]
[347632817,1735989032469,-900.0,0.00010254,2]
[347632818,1735989032479,-500.0,0.00010254,2]
[347632819,1735989032489,-500.0,0.00010254,2]
[347632820,1735989032498,-500.0,0.00010527,2]
[347632821,1735989032507,-555.35496694,0.00010527,2]
[347632822,1735989032518,-1194.20613508,0.00010587,2]
[347632823,1735989032532,-644.666761,0.00010587,2]
[347632824,1735989032560,-175.12710392,0.00010587,2]
[347632825,1735989032570,-1267.0,0.00010587,2]
[347632826,1735989032581,-566.0,0.00010587,2]
[347632827,1735989032591,-150.0,0.00010587,2]
[347632828,1735989032601,-2346.96455112,0.00010587,2]
[347632829,1735989032613,-1546.03544888,0.00010587,2]
[347632830,1735989032623,-1103.0,0.00010587,2]
[347632831,1735989032632,-4530.28707112,0.0001062,2]
[347632832,1735989032643,-987.09715106,0.0001062,2]
[347632833,1735989032654,-1039.7999999,0.0001062,2]
[347632834,1735989032666,-480.37577792,0.0001062,2]
[347632835,1735989032675,-1000.0,0.0001062,2]
[347632836,1735989032684,-450.23,0.00010699,2]
[347632837,1735989032694,-613.54779338,0.00010744,2]
[347632838,1735989032704,-3358.8,0.00010744,2]
[347632839,1735989032716,-1059.9999925,0.00010744,2]
[347632840,1735989032727,-1125.65000025,0.00010744,2]
[347632841,1735989032747,-5056.73125521,0.00010744,2]
[347632842,1735989032768,-12685.27095866,0.00010744,2]
[347632843,1735989032777,-500.0,0.00010801,2]
[347632844,1735989032787,-279.16,0.00010924,2]
[347632845,1735989032796,-601.43,0.00010945,2]
[347632846,1735989032806,-1192.66872793,0.00010969,2]
[347632847,1735989032815,-1192.66872793,0.00010973,2]
[347632849,1735989032825,-1192.66872793,0.00010979,2]
[347632851,1735989032834,-1192.66872793,0.00010981,2]
[347632853,1735989032843,-400.0,0.00010986,2]
[347632855,1735989032852,-2954.24788669,0.00010988,2]
[347632858,1735989032864,-450.1191911,0.00010988,2]
[347632860,1735989032875,-1107.64615845,0.00010988,2]
[347632862,1735989032886,-2370.81428361,0.00010988,2]
[347632864,1735989032899,-4550.12022709,0.00010988,2]
[347632866,1735989032908,-1192.66872793,0.00010994,2]
[347632868,1735989032919,-1192.66872793,0.00010996,2]
[347632870,1735989032928,-550.0,0.00011,2]
[347632873,1735989032937,-167.48,0.00011005,2]
[347632875,1735989032947,-250.0,0.00011015,2]
[347632876,1735989032956,-500.0,0.00011075,2]
[347632878,1735989032965,-500.0,0.00011349,2]
[347632880,1735989032974,-2557.39,0.00011424,2]
[347632882,1735989032983,-150.56,0.00011475,2]
[347632884,1735989032992,-983.523,0.00011543,2]
[347632886,1735989033001,-500.0,0.00011623,2]
[347632888,1735989033010,-900.0,0.00011624,2]
[347632890,1735989033019,-634.892,0.0001168,2]
[347632892,1735989033029,-427.90625485,0.00011759,2]
[347632894,1735989033038,-200.0,0.000118,2]
[347632896,1735989033047,-500.0,0.00011897,2]
[347632898,1735989033057,-1000.0,0.00011948,2]
[347632900,1735989033066,-254.26559189,0.00011998,2]
[347632902,1735989033075,-500.0,0.00011998,2]
[347632904,1735989033084,-1515.48,0.00011999,2]
[347632906,1735989033094,-500.0,0.00011999,2]
[347632908,1735989033104,-500.0,0.00011999,2]
[347632910,1735989033114,-923.99,0.00011999,2]
[347632912,1735989033123,-500.0,0.00011999,2]
[347632914,1735989033133,-1687.7,0.00011999,2]
[347632916,1735989033143,-293.35543916,0.00011999,2]
[347632987,1735989038330,-790.71456084,0.00011999,2]
[347632988,1735989038340,-500.0,0.00011999,2]
[347632989,1735989038353,-500.0,0.00011999,2]
[347632990,1735989038362,-500.0,0.00011999,2]
[347632991,1735989038371,-500.0,0.00011999,2]
[347632992,1735989038381,-1038.22,0.00011999,2]
[347632993,1735989038390,-500.0,0.00011999,2]
[347632994,1735989038399,-500.13,0.00011999,2]
[347632995,1735989038408,-500.0,0.00011999,2]
[347632996,1735989038418,-550.54,0.00011999,2]
[347632997,1735989038427,-698.58,0.00011999,2]
[347632998,1735989038437,-500.0,0.00011999,2]
[347632999,1735989038446,-3000.0,0.00011999,2]
[347633000,1735989038455,-500.0,0.00011999,2]
[347633001,1735989038464,-500.0,0.00011999,2]
[347633002,1735989038474,-500.0,0.00011999,2]
[347633003,1735989038483,-500.0,0.00011999,2]
[347633004,1735989038493,-600.99957098,0.00012,2]
[347633005,1735989038502,-10000.0,0.00012,2]
[347633006,1735989038511,-10000.0,0.00012,2]
[347633007,1735989038520,-450.23,0.00012036,2]
[347633008,1735989038530,-500.0,0.00012052,2]
[347633009,1735989038539,-200.0,0.00012052,2]
[347633010,1735989038548,-391.3360107,0.00012053,2]
[347633011,1735989038557,-150.773349,0.00012073,2]
[347633012,1735989038566,-151.771848,0.00012073,2]
[347633013,1735989038576,-3030.0,0.00012082,2]
[347633014,1735989038586,-156.397997,0.00012086,2]
[347633015,1735989038595,-262.5989036,0.00012098,2]
[347633016,1735989038605,-500.0,0.00012098,2]
[347633017,1735989038614,-515.21,0.00012098,2]
[347633018,1735989038623,-500.0,0.00012098,2]
[347633019,1735989038632,-500.0,0.00012098,2]
[347633020,1735989038641,-594.86,0.00012098,2]
[347633021,1735989038650,-500.0,0.00012098,2]
[347633022,1735989038659,-500.0,0.00012098,2]
[347633023,1735989038670,-504.33,0.00012098,2]
[347633024,1735989038679,-500.0,0.00012098,2]
[347633026,1735989038690,-538.25,0.00012098,2]
[347633028,1735989038699,-500.0,0.00012098,2]
[347633030,1735989038708,-734.37,0.00012098,2]
[347633032,1735989038717,-698.39,0.00012098,2]
[347633034,1735989038726,-500.0,0.00012099,2]
[347633036,1735989038735,-559.85,0.00012099,2]
[347633038,1735989038744,-500.0,0.00012099,2]
[347633040,1735989038753,-538.98,0.00012099,2]
[347633042,1735989038762,-500.0,0.00012099,2]
[347633044,1735989038771,-500.0,0.00012099,2]
[347633046,1735989038780,-500.0,0.00012099,2]
[347633047,1735989038789,-500.0,0.00012099,2]
[347633048,1735989038798,-500.0,0.00012099,2]
[347633049,1735989038808,-500.0,0.00012099,2]
[347633050,1735989038817,-40509.21134256,0.00012099,2]
[347633051,1735989038829,-1003.07828889,0.00012099,2]
[347633052,1735989038840,-1631.46780197,0.00012099,2]
[347633053,1735989038851,-193172.23777553,0.00012099,2]
[347633054,1735989038871,-521.74533198,0.00012099,2]
[347633055,1735989038882,-896.83486374,0.00012099,2]
[347633056,1735989038893,-1972.34,0.00012099,2]
[347633057,1735989038904,-699.54,0.00012099,2]
[347633058,1735989038915,-492.3,0.00012099,2]
[347633059,1735989038926,-2369.61695867,0.00012099,2]
[347633060,1735989038937,-503.598,0.00012099,2]
[347633061,1735989038948,-542.92,0.00012099,2]
[347633062,1735989038959,-2808.0,0.00012099,2]
[347633063,1735989040402,-3594283.15439836,0.00012099,2]
[347633064,1735989040414,-568.49430361,0.00012099,2]
[347633065,1735989040462,-330.52207907,0.00012099,2]
[347633066,1735989040698,-3751.80590961,0.00012099,2]
[347633067,1735989040713,-2562.6744815,0.00012099,2]
[347633076,1735989043560,-1174627.49310258,0.00012099,2]
[347633077,1735989043703,-14285.92213661,0.00012099,2]
[347633078,1735989043715,-2699.828592,0.00012099,2]
[347633079,1735989043747,-1668.02297108,0.00012099,2]
[347633080,1735989043758,-993.12736041,0.00012099,2]
[347633081,1735989046634,-3065.62537981,0.00012099,2]
[347633082,1735989046672,-37642.8563767,0.00012099,2]
[347633083,1735989046688,-14462.20378905,0.00012099,2]
[347633084,1735989046699,-381.69823577,0.00012099,2]
[347633085,1735989046765,-958.56,0.00012099,2]
[347633093,1735989997125,-271.34208148,8.706e-05,2]
[347633101,1735990231566,-166.15,8.316e-05,2]
[347633102,1735990231575,-297.36791852,8.706e-05,2]
[347633103,1735990231585,-150.0,9.127e-05,2]
[347633104,1735990231594,-150.0,9.351e-05,2]
[347633106,1735990231604,-357.82028098,9.56e-05,2]
[347633108,1735990231615,-218.38173763,9.56e-05,2]
[347633110,1735990231625,-135.34827437,9.973e-05,2]
[347633111,1735990231650,-364.65172563,9.973e-05,2]
[347633112,1735990231660,-300.0,9.987e-05,2]
[347633113,1735990231670,-453.96566263,9.988e-05,2]
[347633114,1735990231681,-535.77778,9.988e-05,2]
[347633115,1735990231692,-1079.9999999,9.988e-05,2]
[347633116,1735990231703,-414.06400004,9.988e-05,2]
[347633117,1735990231718,-2620.3073268,9.988e-05,2]
[347633118,1735990231911,-857.76981249,9.988e-05,2]
[347633119,1735990231924,-1000.0,9.988e-05,2]
[347633120,1735990232008,-42432.79433912,9.988e-05,2]
[347633121,1735990232018,-500.0,9.999e-05,2]
[347633122,1735990232028,-314.80336707,9.999e-05,2]
[347633123,1735990232037,-500.0,9.999e-05,2]
[347633124,1735990232046,-307.69804589,9.999e-05,2]
[347633125,1735990232056,-500.0,9.999e-05,2]
[347633126,1735990232066,-500.0,9.999e-05,2]
[347633127,1735990232075,-500.0,9.999e-05,2]
[347633128,1735990232085,-500.0,9.999e-05,2]
[347633129,1735990232094,-500.0,9.999e-05,2]
[347633130,1735990232104,-500.0,9.999e-05,2]
[347633131,1735990232114,-500.0,9.999e-05,2]
[347633132,1735990232125,-207.46550918,9.999e-05,2]
[347633133,1735990232135,-500.0,9.999e-05,2]
[347633134,1735990232146,-380.32080297,9.999e-05,2]
[347633135,1735990232155,-500.0,9.999e-05,2]
[347633136,1735990232165,-500.0,9.999e-05,2]
[347633137,1735990232174,-500.0,9.999e-05,2]
[347633138,1735990232184,-500.0,9.999e-05,2]
[347633139,1735990232195,-500.0,9.999e-05,2]
[347633140,1735990232204,-500.0,9.999e-05,2]
[347633141,1735990232214,-500.0,9.999e-05,2]
[347633142,1735990232224,-500.0,9.999e-05,2]
[347633143,1735990232233,-215.68020868,9.999e-05,2]
[347633144,1735990232242,-500.0,9.999e-05,2]
[347633145,1735990232252,-500.0,9.999e-05,2]
[347633146,1735990232448,-500.0,9.999e-05,2]
[347633147,1735990232460,-500.0,9.999e-05,2]
[347633148,1735990232470,-500.0,9.999e-05,2]
[347633149,1735990232479,-501.91068109,9.999e-05,2]
[347633150,1735990232488,-500.0,9.999e-05,2]
[347633151,1735990232497,-500.0,9.999e-05,2]
[347633152,1735990232506,-115652.97500429,0.0001,2]
[347633155,1735990237578,-703.23,0.0001,2]
[347633156,1735990237590,-2975.92891734,0.0001,2]
[347633157,1735990237708,-492.065,0.0001,2]
[347633159,1735990239541,-766.80727621,0.0001,2]
[347633160,1735990239552,-528.04518464,0.0001,2]
[347633161,1735990240858,-1348.7192708,0.0001,2]
[347633162,1735990240869,-1070.6829142,0.0001,2]
[347633169,1735990242878,-19737.7693523,0.0001,2]
[347633170,1735990242909,-30.14912012,0.0001,2]
[347633175,1735990245520,-423.9,0.0001,2]
[347633176,1735990245532,-1684.3624554,0.0001,2]
[347633177,1735990245543,-563.27119587,0.0001,2]
[347633178,1735990245558,-1873.84791645,0.0001,2]
[347633179,1735990245595,-383019.3866172,0.0001,2]
[347633180,1735990245631,-7205.36511,0.0001,2]
[347633181,1735990245643,-2069.61379176,0.0001,2]
[347633182,1735990245663,-51862.38436,0.0001,2]
[347633183,1735990245674,-587.39626085,0.0001,2]
[347633184,1735990245687,-2854.00170926,0.0001,2]
[347633185,1735990245698,-1104.075,0.0001,2]
[347633190,1735990879943,10000.0,0.0001303,29]
[347633192,1735991020453,10000.0,0.0001303,29]
[347633201,1735991297245,10000.0,0.0001303,29]
[347633202,1735991347175,-796.71928153,8.044e-05,2]
[347633211,1735991431904,-261.8541,8.044e-05,2]
[347633212,1735991431966,-441.42661847,8.044e-05,2]
[347633213,1735991431976,-593.18,8.219e-05,2]
[347633214,1735991431986,-165.91,8.464e-05,2]
[347633215,1735991431995,-604.87,8.538e-05,2]
[347633216,1735991432004,-504.98,8.601e-05,2]
[347633217,1735991432014,-621.26,8.642e-05,2]
[347633218,1735991432025,-4339.09,8.659e-05,2]
[347633219,1735991432034,-1287.02,8.761e-05,2]
[347633220,1735991432043,-150.0,8.877e-05,2]
[347633221,1735991432054,-4498.68,8.877e-05,2]
[347633222,1735991432064,-10288.0445815,8.888e-05,2]
[347633223,1735991432140,-1920.06,8.888e-05,2]
[347633235,1735991437734,-254.4954185,8.888e-05,2]
[347633236,1735991437744,-250.0,8.891e-05,2]
[347633237,1735991437754,-150.0,9e-05,2]
[347633238,1735991437764,-150.0,9e-05,2]
[347633239,1735991437773,-1000.0,9.085e-05,2]
[347633240,1735991437783,-1700.0,9.158e-05,2]
[347633241,1735991437792,-250.0,9.213e-05,2]
[347633242,1735991437801,-570.06,9.589e-05,2]
[347633243,1735991437810,-604.87,9.606e-05,2]
[347633244,1735991437819,-325.0,9.616e-05,2]
[347633245,1735991437829,-150.0,9.883e-05,2]
[347633246,1735991437839,-191.5401,9.9e-05,2]
[347633247,1735991437848,-1540.374,9.9e-05,2]
[347633248,1735991437857,-1729.8025,9.9e-05,2]
[347633249,1735991437866,-150.0,9.909e-05,2]
[347633250,1735991437876,-150.0,9.942e-05,2]
[347633251,1735991437886,-9418.5019815,9.972e-05,2]
[347633252,1735991437923,-956.61113343,9.972e-05,2]
[347633253,1735991437932,-154.767345,9.973e-05,2]
[347633254,1735991437942,-251.621748,9.973e-05,2]
[347633255,1735991437953,-500.0,9.973e-05,2]
[347633256,1735991437962,-150.0,9.977e-05,2]
[347633257,1735991437972,-459.62285638,9.998e-05,2]
[347633258,1735991437981,-1007.015,9.999e-05,2]
[347633259,1735991437990,-500.0,9.999e-05,2]
[347633260,1735991437999,-500.0,9.999e-05,2]
[347633261,1735991438009,-500.0,9.999e-05,2]
[347633262,1735991438019,-257.53825922,9.999e-05,2]
[347633316,1735991440081,-150.0,9.892e-05,2]
[347633317,1735991440091,-228.00946762,9.999e-05,2]
[347633318,1735991440103,-514.45227317,9.999e-05,2]
[347633319,1735991440112,-500.0,9.999e-05,2]
[347633320,1735991440121,-500.0,9.999e-05,2]
[347633321,1735991440131,-134.41395719,9.999e-05,2]
[347633322,1735991440149,-365.58604281,9.999e-05,2]
[347633323,1735991440158,-120.23395719,9.999e-05,2]
[347633325,1735991440293,-150.0,9.962e-05,2]
[347633327,1735991440303,-379.76604281,9.999e-05,2]
[347633329,1735991440312,-500.0,9.999e-05,2]
[347633330,1735991440321,-500.0,9.999e-05,2]
[347633332,1735991440330,-500.0,9.999e-05,2]
[347633333,1735991440340,-500.0,9.999e-05,2]
[347633334,1735991440349,-500.0,9.999e-05,2]
[347633335,1735991440358,-2536.93,9.999e-05,2]
[347633336,1735991440367,-611.37402217,9.999e-05,2]
[347633337,1735991440376,-500.0,9.999e-05,2]
[347633338,1735991440385,-500.0,9.999e-05,2]
[347633339,1735991440394,-500.0,9.999e-05,2]
[347633340,1735991440403,-500.40516722,9.999e-05,2]
[347633341,1735991440412,-598.33,9.999e-05,2]
[347633342,1735991440422,-623.63,9.999e-05,2]
[347633343,1735991440431,-500.0,9.999e-05,2]
[347633344,1735991440440,-500.0,9.999e-05,2]
[347633345,1735991440449,-322.47453365,9.999e-05,2]
[347633346,1735991440458,-500.0,9.999e-05,2]
[347633347,1735991440468,-616.19,9.999e-05,2]
[347633348,1735991440479,-597.53,9.999e-05,2]
[347633349,1735991440488,-1024.09,9.999e-05,2]
[347633350,1735991440498,-500.0,9.999e-05,2]
[347633351,1735991440507,-558.97,9.999e-05,2]
[347633352,1735991440516,-500.0,9.999e-05,2]
[347633353,1735991440525,-500.0,9.999e-05,2]
[347633354,1735991440535,-500.0,9.999e-05,2]
[347633355,1735991440543,-657.8,9.999e-05,2]
[347633356,1735991440553,-500.0,9.999e-05,2]
[347633357,1735991440563,-500.0,9.999e-05,2]
[347633358,1735991440572,-501.06022197,9.999e-05,2]
[347633359,1735991440581,-500.0,9.999e-05,2]
[347633360,1735991440591,-1870.54,9.999e-05,2]
[347633361,1735991440599,-502.07028179,9.999e-05,2]
[347633362,1735991440609,-500.0,9.999e-05,2]
[347633363,1735991440618,-500.0,9.999e-05,2]
[347633364,1735991440632,-500.0,9.999e-05,2]
[347633365,1735991440643,-500.37600263,9.999e-05,2]
[347633366,1735991440652,-501.50284588,9.999e-05,2]
[347633367,1735991440662,-500.0,9.999e-05,2]
[347633368,1735991440671,-500.0,9.999e-05,2]